fUSD/lending_fUSD_20251023
["ID","MTS","AMOUNT","RATE_DAILY","PERIOD"]
[392209213,1761256251287,-15186.4101818,0.00037111,3]
[392209214,1761256251297,-500.0,0.00037121,5]
[392209215,1761256251307,-1147.07500476,0.00037121,5]
[392209216,1761256251317,-1000.0,0.00037121,5]
[392209217,1761256251327,-1000.0,0.00037121,5]
[392209218,1761256251336,-1000.0,0.00037121,5]
[392209219,1761256251346,-161.23945813,0.00037121,5]
[392209220,1761256251355,-1000.0,0.00037121,5]
[392209221,1761256251365,-1000.0,0.00037121,5]
[392209222,1761256251375,-1000.0,0.00037121,5]
[392209223,1761256251384,-1000.0,0.00037121,5]
[392209224,1761256251394,-530.89090806,0.00037121,5]
[392209225,1761256251404,-203.92975285,0.00037148,2]
[392209226,1761256251414,-168.0,0.00037168,7]
[392209227,1761256251423,-151.0,0.00037181,30]
[392209228,1761256251433,-151.0,0.00037181,30]
[392209229,1761256251442,-151.0,0.00037181,30]
[392209230,1761256251452,-168.0,0.00037188,2]
[392209231,1761256251461,-1018.23534964,0.00037198,2]
[392209232,1761256251471,-168.0,0.000372,120]
[392209233,1761256251480,-15940.049481,0.000372,3]
[392209234,1761256251490,-15186.4101818,0.000372,3]
[392209235,1761256251499,-151.96430448,0.00037204,2]
[392209236,1761256251508,-168.0,0.00037211,2]
[392209237,1761256251517,-1010.9561293,0.00037217,2]
[392209238,1761256251526,-438.36324517,0.00037221,5]
[392209239,1761256251536,-500.69636851,0.00037221,5]
[392209240,1761256251545,-301.42904761,0.00037221,5]
[392209241,1761256251554,-201.06096354,0.00037221,5]
[392209242,1761256251563,-250.0,0.00037221,5]
[392209243,1761256251572,-250.0,0.00037243,2]
[392209244,1761256251581,-17041.40254029,0.00037246,2]
[392209245,1761256251590,-2751.0,0.00037256,120]
[392209246,1761256251599,-400.0,0.00037258,5]
[392209247,1761256251608,-180.88547733,0.00037305,15]
[392209248,1761256251617,-596.35,0.00037308,2]
[392209249,1761256251626,-168.0,0.00037313,120]
[392209250,1761256251635,-346.92554585,0.00037329,2]
[392209251,1761256251645,-207.4,0.0003733,2]
[392209252,1761256251654,-747.8093786,0.0003733,2]
[392209253,1761256251663,-688.49839244,0.00037331,2]
[392209254,1761256251672,-151.0,0.00037331,2]
[392209255,1761256251683,-200.0,0.00037331,2]
[392209256,1761256251692,-600.0,0.00037331,2]
[392209257,1761256251701,-251.11897888,0.00037331,2]
[392209258,1761256251711,-200.0,0.00037331,2]
[392209259,1761256251719,-152.680624,0.00037331,30]
[392209260,1761256251729,-1018.23534964,0.0003744,2]
[392209261,1761256251739,-228.18974246,0.00037462,4]
[392209262,1761256251749,-168.0,0.00037471,120]
[392209263,1761256251758,-17041.40254029,0.00037522,2]
[392209264,1761256251767,-15940.049481,0.00037556,3]
[392209265,1761256251777,-15186.4101818,0.00037556,3]
[392209266,1761256251788,-157.0,0.000376,120]
[392209267,1761256251797,-275.28,0.000376,2]
[392209268,1761256251807,-501.0,0.00037602,120]
[392209269,1761256251816,-168.0,0.00037625,2]
[392209270,1761256251826,-166.66,0.00037665,2]
[392209271,1761256251836,-1000.39049434,0.00037668,5]
[392209272,1761256251847,-1500.0,0.00037668,5]
[392209273,1761256251858,-1500.0,0.00037668,5]
[392209274,1761256251867,-1002.04286902,0.00037668,5]
[392209275,1761256251878,-500.0,0.00037668,5]
[392209276,1761256251887,-1500.0,0.00037668,5]
[392209277,1761256251897,-1500.0,0.00037668,5]
[392209278,1761256251906,-15186.4101818,0.00037674,3]
[392209279,1761256251916,-1018.23534964,0.00037681,2]
[392209280,1761256251926,-168.0,0.00037712,2]
[392209281,1761256251936,-168.0,0.00037724,2]
[392209282,1761256251948,-662.48804779,0.00037732,2]
[392209283,1761256251959,-15186.4101818,0.00037738,3]
[392209284,1761256251968,-1504.0,0.00037748,2]
[392209285,1761256251979,-250.46795363,0.00037768,5]
[392209286,1761256251988,-621.78829552,0.00037788,2]
[392209287,1761256251998,-17041.40254029,0.00037797,2]
[392209288,1761256252007,-1282.91,0.00037855,2]
[392209289,1761256252017,-713.97283296,0.00037879,2]
[392209290,1761256252026,-151.0,0.00037879,2]
[392209291,1761256252035,-200.0,0.00037879,2]
[392209292,1761256252045,-260.4103811,0.00037879,2]
[392209293,1761256252054,-200.0,0.00037879,2]
[392209294,1761256252063,-161.91979002,0.00037898,2]
[392209295,1761256252072,-1018.23534964,0.00037923,2]
[392209296,1761256252081,-600.0,0.00037942,5]
[392209297,1761256252090,-15186.4101818,0.00037958,3]
[392209298,1761256252099,-4174.2383819,0.00037988,2]
[392209299,1761256252112,-15186.4101818,0.00037989,3]
[392209300,1761256252121,-11453.62047982,0.00037999,120]
[392209301,1761256252130,-588.67,0.00038,30]
[392209302,1761256252143,-1613.27,0.00038,14]
[392209303,1761256252153,-159.52,0.00038021,2]
[392209304,1761256252162,-1503.0,0.00038061,120]
[392209305,1761256252171,-17041.40254029,0.00038073,2]
[392209306,1761256252181,-726.67837332,0.000381,33]
[392209307,1761256252191,-180.88547733,0.00038109,15]
[392209308,1761256252200,-1018.23534964,0.00038165,2]
[392209309,1761256252210,-636.67947853,0.00038216,5]
[392209310,1761256252221,-198.69932731,0.00038216,5]
[392209311,1761256252230,-500.0,0.00038216,5]
[392209312,1761256252239,-151.0,0.00038235,30]
[392209313,1761256252249,-206.013653,0.00038235,30]
[392209314,1761256252259,-208.305066,0.00038235,30]
[392209315,1761256252268,-759.611084,0.00038235,30]
[392209316,1761256252277,-208.305066,0.00038235,30]
[392209317,1761256252287,-759.611084,0.00038235,30]
[392209318,1761256252296,-208.305066,0.00038235,30]
[392209319,1761256252310,-759.611084,0.00038235,30]
[392209320,1761256252320,-208.305059,0.00038235,30]
[392209321,1761256252330,-759.611083,0.00038235,30]
[392209322,1761256252339,-320.74051982,0.00038296,2]
[392209323,1761256252350,-17041.40254029,0.00038349,2]
[392209324,1761256252360,-15186.4101818,0.00038395,3]
[392209325,1761256252369,-1018.23534964,0.00038406,2]
[392209326,1761256252379,-241.77134,0.00038415,120]
[392209327,1761256252389,-151.0,0.00038415,120]
[392209328,1761256252399,-151.0,0.00038415,120]
[392209330,1761256252408,-151.0,0.00038415,120]
[392209331,1761256252418,-151.0,0.00038415,120]
[392209332,1761256252427,-151.0,0.00038415,120]
[392209333,1761256252437,-151.0,0.00038415,120]
[392209334,1761256252447,-151.0,0.00038415,120]
[392209335,1761256252456,-298.763832,0.00038415,120]
[392209336,1761256252465,-151.0,0.00038415,120]
[392209337,1761256252476,-151.0,0.00038415,120]
[392209338,1761256252486,-151.0,0.00038415,120]
[392209339,1761256252497,-150.0,0.00038415,2]
[392209340,1761256252507,-740.38982778,0.00038427,2]
[392209341,1761256252517,-151.0,0.00038427,2]
[392209342,1761256252529,-200.0,0.00038427,2]
[392209343,1761256252540,-404.5740031,0.00038427,2]
[392209344,1761256252551,-200.0,0.00038427,2]
[392209345,1761256252561,-151.55363201,0.00038473,5]
[392209346,1761256252570,-15186.4101818,0.0003849,3]
[392209347,1761256252580,-27586.44,0.000385,14]
[392209348,1761256252590,-15186.4101818,0.0003857,3]
[392209349,1761256252599,-15186.4101818,0.0003858,3]
[392209350,1761256252609,-151.0,0.0003859,120]
[392209351,1761256252619,-151.0,0.0003859,120]
[392209352,1761256252629,-151.0,0.0003859,120]
[392209353,1761256252639,-151.0,0.0003859,120]
[392209354,1761256252649,-151.0,0.0003859,120]
[392209355,1761256252659,-30372.8203637,0.0003859,3]
[392209356,1761256252669,-151.0,0.000386,120]
[392209357,1761256252679,-151.0,0.000386,120]
[392209358,1761256252689,-176.271543,0.000386,120]
[392209359,1761256252698,-151.0,0.000386,120]
[392209360,1761256252708,-223.51177975,0.000386,120]
[392209361,1761256252717,-164.222576,0.000386,120]
[392209362,1761256252727,-164.222576,0.000386,120]
[392209364,1761256252737,-164.222576,0.000386,120]
[392209365,1761256252746,-151.0,0.000386,120]
[392209366,1761256252755,-164.222572,0.000386,120]
[392209367,1761256252765,-151.0,0.000386,120]
[392209368,1761256252774,-151.0,0.000386,120]
[392209369,1761256252784,-151.0,0.000386,120]
[392209370,1761256252793,-151.0,0.000386,120]
[392209371,1761256252803,-151.0,0.000386,120]
[392209372,1761256252814,-151.0,0.000386,120]
[392209373,1761256252825,-151.0,0.000386,120]
[392209374,1761256252834,-151.0,0.000386,120]
[392209375,1761256252845,-151.0,0.000386,120]
[392209376,1761256252854,-151.0,0.000386,120]
[392209377,1761256252864,-151.0,0.000386,120]
[392209378,1761256252876,-183.967211,0.000386,120]
[392209379,1761256252886,-151.0,0.000386,120]
[392209380,1761256252895,-188.978806,0.000386,120]
[392209381,1761256252905,-45559.2305455,0.000386,3]
[392209382,1761256252914,-502.0,0.00038602,120]
[392209383,1761256252926,-596.35,0.00038609,2]
[392209384,1761256252936,-17041.40254029,0.00038624,2]
[392209385,1761256252945,-800.0,0.00038627,5]
[392209386,1761256252955,-1018.23534964,0.00038648,2]
[392209387,1761256252964,-359.76179104,0.00038698,2]
[392209388,1761256252974,-1091.0,0.0003871,5]
[392209389,1761256252983,-4188.78,0.00038758,2]
[392209390,1761256252993,-200.0,0.00038758,2]
[392209391,1761256253003,-15186.4101818,0.0003879,3]
[392209392,1761256253013,-166.66,0.00038796,2]
[392209393,1761256253023,-5180.62,0.000388,30]
[392209394,1761256253033,-275.28,0.000388,2]
[392209395,1761256253043,-17041.40254029,0.000389,2]
[392209396,1761256253053,-180.88547733,0.00038912,15]
[392209397,1761256253063,-662.48804779,0.00038932,2]
[392209398,1761256253073,-1000.0,0.00038973,5]
[392209399,1761256253083,-767.7842514,0.00038975,2]
[392209400,1761256253094,-151.0,0.00038975,2]
[392209401,1761256253107,-200.0,0.00038975,2]
[392209402,1761256253117,-200.0,0.00038975,2]
[392209403,1761256253127,-151.0,0.0003899,120]
[392209404,1761256253138,-151.0,0.0003899,120]
[392209405,1761256253151,-151.0,0.0003899,120]
[392209406,1761256253161,-151.0,0.0003899,120]
[392209407,1761256253171,-151.0,0.0003899,120]
[392209408,1761256253184,-151.0,0.0003899,120]
[392209410,1761256253195,-151.0,0.0003899,120]
[392209411,1761256253400,-151.0,0.0003899,120]
[392209412,1761256253410,-151.0,0.0003899,120]
[392209413,1761256253420,-151.0,0.0003899,120]
[392209414,1761256253431,-46755.04949382,0.00039,2]
[392209415,1761256253440,-1000.09171088,0.00039,5]
[392209416,1761256253450,-1059.84183953,0.00039002,6]
[392209417,1761256253460,-461.48609924,0.00039003,6]
[392209418,1761256253470,-600.0,0.00039166,5]
[392209419,1761256253480,-1000.0,0.00039312,5]
[392209420,1761256253490,-151.0,0.00039368,120]
[392209421,1761256253500,-272.198777,0.00039368,120]
[392209422,1761256253509,-1613.27,0.000394,14]
[392209423,1761256253519,-151.0,0.00039432,120]
[392209424,1761256253529,-151.0,0.00039432,120]
[392209425,1761256253539,-206.463717,0.00039432,120]
[392209426,1761256253549,-696.018,0.0003945,120]
[392209427,1761256253559,-796.19226871,0.00039523,2]
[392209428,1761256253569,-151.0,0.00039523,2]
[392209429,1761256253579,-200.0,0.00039523,2]
[392209430,1761256253589,-503.0,0.00039602,120]
[392209431,1761256253599,-422.41,0.00039654,2]
[392209432,1761256253609,-165.72,0.00039663,2]
[392209433,1761256253619,-332.60791905,0.00039665,2]
[392209434,1761256253630,-588.67,0.000397,30]
[392209435,1761256253640,-180.88547733,0.00039716,15]
[392209436,1761256253651,-596.35,0.00039911,2]
[392209437,1761256253661,-166.66,0.00039928,2]
[392209438,1761256253671,-202.8170051,0.00039997,5]
[392209439,1761256253680,-1000.0,0.0004,7]
[392209440,1761256253690,-1858.80379147,0.0004,2]
[392209441,1761256253700,-7222.81430133,0.0004,14]
[392209442,1761256253710,-27586.44,0.0004,14]
[392209443,1761256253720,-5329.76975438,0.0004,120]
[392209444,1761256253730,-21217.77439315,0.0004,120]
[392209445,1761256254754,-151.0,0.00036846,30]
[392209446,1761256254764,-329.066519,0.0004,120]
[392209447,1761256256731,-500.0,0.0003285,2]
[392209448,1761256256742,-500.0,0.0003285,2]
[392209449,1761256256753,-192.5531815,0.0003285,2]
[392209450,1761256256762,-151.0,0.00033031,2]
[392209451,1761256256771,-2314.450674,0.00036602,30]
[392209452,1761256256781,-151.0,0.00036602,30]
[392209453,1761256256790,-151.0,0.00036602,30]
[392209454,1761256256800,-2314.450674,0.00036602,30]
[392209455,1761256256809,-151.0,0.00036602,30]
[392209456,1761256256818,-2314.450674,0.00036602,30]
[392209457,1761256256828,-2314.450674,0.00036602,30]
[392209458,1761256256838,-151.0,0.00036602,30]
[392209459,1761256256847,-151.0,0.00036602,30]
[392209460,1761256256858,-2314.450674,0.00036602,30]
[392209461,1761256256867,-2314.450674,0.00036621,30]
[392209462,1761256256876,-151.0,0.00036621,30]
[392209463,1761256256886,-2314.450674,0.00036621,30]
[392209464,1761256256896,-2314.450674,0.00036846,30]
[392209465,1761256256905,-151.0,0.00036846,30]
[392209466,1761256256915,-2314.450674,0.00036846,30]
[392209467,1761256256924,-37178.48979372,0.0004,120]
[392209468,1761256257409,-151.0,0.00036602,30]
[392209469,1761256257419,-196.2201198,0.0004,120]
[392209470,1761256257432,-763.40468133,0.0004,120]
[392209471,1761256257446,-593.57470001,0.0004,120]
[392209472,1761256258359,-1701.43176664,0.00036602,30]
[392209473,1761256258371,-613.01890736,0.00036602,30]
[392209474,1761256258380,-2314.450674,0.00036602,30]
[392209475,1761256258389,-151.0,0.00036602,30]
[392209476,1761256258398,-178.061518,0.00036602,30]
[392209477,1761256258407,-82.03555318,0.00036621,30]
[392209478,1761256258456,-43.41437929,0.00036621,30]
[392209479,1761256264481,200.0,0.00036602,120]
[392209523,1761256403220,500.0,0.00024932,2]
[392209545,1761256562277,200.0,0.00036602,120]
[392209546,1761256564886,-164.0,0.00031,120]
[392209547,1761256564917,-314.16280283,0.00033158,2]
[392209548,1761256564949,-439.66,0.00033997,120]
[392209549,1761256564979,-151.0,0.00034,2]
[392209550,1761256565137,-283.0,0.00034704,2]
[392209551,1761256565171,-283.0,0.00035095,7]
[392209552,1761256565205,-283.0,0.00035341,2]
[392209553,1761256565251,-283.0,0.00035659,2]
[392209554,1761256565284,-283.0,0.00035687,7]
[392209555,1761256565316,-283.0,0.00035879,120]
[392209556,1761256565347,-283.0,0.00036117,2]
[392209557,1761256565379,-283.0,0.00036189,7]
[392209558,1761256565407,-167.11321011,0.00036275,2]
[392209559,1761256565440,-1000.0,0.00036319,120]
[392209560,1761256565470,-167.1132101,0.00036374,2]
[392209561,1761256565499,-300.0,0.00036375,120]
[392209562,1761256565532,-400.0,0.00036409,2]
[392209563,1761256565562,-151.0,0.0003641,2]
[392209564,1761256565594,-151.0,0.0003641,2]
[392209565,1761256565628,-151.0,0.0003641,2]
[392209566,1761256565657,-151.0,0.0003641,2]
[392209567,1761256565688,-151.0,0.0003641,2]
[392209568,1761256565718,-151.0,0.0003641,2]
[392209569,1761256565748,-151.0,0.0003641,2]
[392209570,1761256565778,-151.0,0.0003641,2]
[392209571,1761256565808,-287.36219044,0.0003641,2]
[392209572,1761256565837,-500.0,0.0003641,2]
[392209573,1761256565868,-574.12855637,0.0003641,2]
[392209574,1761256565898,-500.0,0.0003641,2]
[392209575,1761256565928,-230.99743858,0.0003641,2]
[392209576,1761256565961,-151.0,0.0003641,2]
[392209577,1761256565992,-151.0,0.0003641,2]
[392209578,1761256566023,-151.0,0.0003641,2]
[392209579,1761256566054,-151.0,0.0003641,2]
[392209580,1761256566085,-151.0,0.0003641,2]
[392209581,1761256566114,-250.0,0.0003641,2]
[392209582,1761256566145,-151.0,0.0003641,2]
[392209583,1761256566174,-322.6107,0.0003641,2]
[392209584,1761256566206,-250.0,0.0003641,2]
[392209585,1761256566240,-151.0,0.0003641,2]
[392209587,1761256566272,-250.0,0.0003641,2]
[392209589,1761256566302,-151.0,0.0003641,2]
[392209591,1761256566332,-250.0,0.0003641,2]
[392209593,1761256566363,-151.0,0.0003641,2]
[392209594,1761256566392,-250.0,0.0003641,2]
[392209595,1761256566422,-151.0,0.0003641,2]
[392209596,1761256566451,-250.0,0.0003641,2]
[392209597,1761256566482,-151.0,0.0003641,2]
[392209598,1761256566511,-369.75363377,0.0003641,2]
[392209599,1761256566541,-151.0,0.0003641,2]
[392209600,1761256566570,-500.0,0.0003641,2]
[392209601,1761256566599,-500.0,0.0003641,2]
[392209602,1761256566627,-209.40437684,0.0003641,2]
[392209603,1761256566657,-151.0,0.0003641,2]
[392209604,1761256566687,-500.0,0.0003641,2]
[392209605,1761256566716,-435.38776192,0.0003641,2]
[392209606,1761256568808,-64.61223808,0.0003641,2]
[392209615,1761256639591,265.0,0.00036602,120]
[392209691,1761256840367,-403.53349976,0.00033533,2]
[392209692,1761256845568,-96.46650024,0.00033533,2]
[392209693,1761256845589,-90.66312119,0.00033533,2]
[392209694,1761256849743,-281.9959556,0.00033533,2]
[392209697,1761256853445,-127.34092321,0.00033533,2]
[392209698,1761256853470,-53.58746682,0.00033727,2]
[392209699,1761256860522,200.0,0.00036609,120]
[392209701,1761256887296,-151.0,0.00033619,2]
[392209702,1761256887327,-83.99142358,0.0003456,120]
[392209703,1761256901018,-199.00857642,0.0003456,120]
[392209704,1761256901043,-71.81535089,0.00034994,120]
[392209705,1761256903145,-151.0,0.00033408,2]
[392209706,1761256903168,-157.84395509,0.00034994,120]
[392209710,1761256930337,-151.0,0.00033482,2]
[392209711,1761256930360,-11.20630905,0.00034994,120]
[392209712,1761256932713,-59.13438497,0.00034994,120]
[392209713,1761256932739,-199.10891131,0.00035059,2]
[392209714,1761256945470,-83.89108869,0.00035059,2]
[392209715,1761256945498,-188.65891131,0.00035413,2]
[392209716,1761256948898,-94.34108869,0.00035413,2]
[392209717,1761256948926,-71.43555394,0.00035511,7]
[392209718,1761256960960,-211.56444606,0.00035511,7]
[392209719,1761256960987,-109.21420586,0.00035761,2]
[392209720,1761256975461,-151.0,0.00033485,2]
[392209721,1761256975486,-73.44009699,0.00035761,2]
[392209722,1761256977132,-100.34569715,0.00035761,2]
[392209723,1761256977156,-300.0,0.00035806,120]
[392209724,1761256977180,-10.06107978,0.00035806,120]
[392209725,1761256981272,-289.93892022,0.00035806,120]
[392209726,1761256981303,-29.96769124,0.0003595,2]
[392209728,1761256983689,-482.86536425,0.00035831,2]
[392209732,1761256986533,-151.0,0.00033727,2]
[392209733,1761256986554,-222.32591773,0.00035831,2]
[392209734,1761256988744,-187.0,0.00035578,2]
[392209735,1761256988767,-421.14338052,0.00035831,2]
[392209736,1761256997833,169.76186131,0.00036609,120]
[392209737,1761257002992,500.0,0.00024932,2]
[392209738,1761257005120,-151.0,0.0003349,2]
[392209739,1761257005157,-150.67714213,0.00035097,7]
[392209742,1761257007866,-36.32285787,0.00035097,7]
[392209743,1761257007892,-187.0,0.00035427,2]
[392209744,1761257007916,-30.97541254,0.00035831,2]
[392209745,1761257022488,333.53875861,0.00036609,120]
[392209747,1761257050593,-151.0,0.00033635,2]
[392209748,1761257050614,-99.0,0.00033657,2]
[392209751,1761257080735,-171.47,0.00031583,2]
[392209752,1761257080758,-61.53344987,0.00033618,2]
[392209754,1761257084872,-89.46655013,0.00033618,2]
[392209755,1761257084898,-107.6571782,0.00033691,2]
[392209762,1761257110408,-43.3428218,0.00033691,2]
[392209763,1761257110438,-151.0,0.00033761,2]
[392209764,1761257110466,-87.4796045,0.00035831,2]
[392209765,1761257112602,-219.30693218,0.00035831,2]
[392209770,1761257118540,-304.43393434,0.00035831,2]
[392209771,1761257121631,-187.46597134,0.00035831,2]
[392209772,1761257121658,-131.43001171,0.00035847,2]
[392209773,1761257144014,-151.0,0.00033779,2]
[392209774,1761257144040,-55.56998829,0.00035847,2]
[392209775,1761257144064,-253.03230876,0.0003595,2]
[392209776,1761257144085,-167.1132101,0.00036232,2]
[392209777,1761257144108,-400.0,0.00036331,2]
[392209778,1761257144130,-65.35300522,0.00036332,120]
[392209779,1761257145624,-401.18172334,0.00036332,120]
[392209780,1761257156467,-151.0,0.00034009,2]
[392209781,1761257156492,-398.99781804,0.00034887,2]
[392209782,1761257159918,-289.73762311,0.00034887,2]
[392209783,1761257160828,200.0,0.00036608,120]
[392209784,1761257162150,-400.0,0.00034886,2]
[392209785,1761257162173,-34.50605857,0.00034887,2]
[392209786,1761257164605,-268.35715914,0.00034887,2]
[392209787,1761257167010,-151.0,0.0003399,2]
[392209788,1761257167037,-126.77919279,0.00034887,2]
[392209789,1761257169726,-172.45,0.00034887,2]
[392209790,1761257185360,-151.0,0.00033985,2]
[392209791,1761257185388,-42.21654723,0.00034712,2]
[392209792,1761257189779,-270.32222325,0.00034712,2]
[392209793,1761257192074,-48.57130152,0.00034712,2]
[392209794,1761257192097,-231.94405486,0.00034887,2]
[392209795,1761257194238,-357.41725042,0.00034887,2]
[392209796,1761257197503,-161.20902467,0.00034887,2]
[392209797,1761257199899,-151.0,0.00033953,2]
[392209798,1761257199921,-55.12852006,0.00034887,2]
[392209799,1761257202152,-239.96733956,0.00034887,2]
[392209800,1761257204464,-168.58978569,0.00034887,2]
[392209801,1761257206697,-228.36034156,0.00034887,2]
[392209802,1761257209193,-162.91502464,0.00034887,2]
[392209803,1761257213931,-360.86301236,0.00034887,2]
[392209805,1761257231050,-222.72966956,0.00034887,2]
[392209806,1761257248097,-5216.6781287,0.00034887,2]
[392209807,1761257250043,553.99,0.00036608,30]
[392209879,1761257364427,-151.0,0.00033403,2]
[392209880,1761257364455,-170.32108523,0.00033468,2]
[392209881,1761257369105,-151.0,0.00033467,2]
[392209882,1761257369126,-37.46891477,0.00033468,2]
[392209883,1761257369148,-2311.50441116,0.00034887,2]
[392209884,1761257371103,-29.46508971,0.00034887,2]
[392209885,1761257371127,-901.91920452,0.00034919,2]
[392209911,1761257432137,-371.055,0.00034919,2]
[392209913,1761257432197,-1761.74018278,0.00034919,2]
[392209914,1761257432207,-1200.0,0.00035134,3]
[392209915,1761257432217,-500.0,0.00035134,7]
[392209917,1761257432227,-170.09404271,0.00035134,7]
[392209918,1761257432236,-391.1473574,0.00035134,7]
[392209919,1761257432246,-255.30040264,0.00035134,7]
[392209920,1761257432256,-73219.78323991,0.00035135,2]
[392209921,1761257432279,-61411.53949703,0.00035135,2]
[392209922,1761257432295,-57233.7092959,0.00035135,2]
[392209923,1761257432387,-1459.65947331,0.00035135,2]
[392209924,1761257432398,-12896.44702058,0.00035135,2]
[392209925,1761257432409,-1758.72627137,0.00035135,2]
[392209926,1761257432421,-3130.13655715,0.00035135,2]
[392209945,1761257438771,-535.08807308,0.00035135,2]
[392209947,1761257440457,-27261.01303017,0.00035135,2]
[392209948,1761257440466,-168.0,0.00035617,2]
[392209949,1761257440477,-168.0,0.00035802,2]
[392209950,1761257440487,-621.78829552,0.0003595,2]
[392209951,1761257440497,-168.0,0.00036051,2]
[392209952,1761257440508,-766.05454379,0.0003631,2]
[392209953,1761257440520,-533.46527144,0.00036332,120]
[392209954,1761257440529,-2500.0,0.00036332,2]
[392209955,1761257440538,-5939.7685,0.00036332,2]
[392209956,1761257440547,-1000.0,0.00036332,2]
[392209957,1761257440559,-187.0,0.00036343,120]
[392209959,1761257440569,-14696.6653559,0.00036346,2]
[392209960,1761257440578,-753.804,0.00036365,45]
[392209961,1761257440587,-16278.87244654,0.00036365,2]
[392209962,1761257440596,-726.76864022,0.00036365,8]
[392209963,1761257440606,-162.79692966,0.00036365,15]
[392209964,1761257440615,-200.0,0.0003641,2]
[392209965,1761257440624,-200.0,0.0003641,2]
[392209966,1761257440633,-322.6107,0.0003641,2]
[392209967,1761257440642,-500.0,0.0003641,2]
[392209968,1761257440652,-500.0,0.0003641,2]
[392209969,1761257440661,-500.0,0.0003641,2]
[392209970,1761257440670,-500.0,0.0003641,2]
[392209971,1761257440679,-500.0,0.0003641,2]
[392209972,1761257440689,-500.0,0.0003641,2]
[392209973,1761257440698,-600.0,0.0003641,2]
[392209974,1761257440707,-500.0,0.0003641,2]
[392209975,1761257440716,-500.0,0.0003641,2]
[392209976,1761257440725,-500.0,0.0003641,2]
[392209977,1761257440734,-151.0,0.0003641,2]
[392209978,1761257440743,-500.0,0.0003641,2]
[392209979,1761257440752,-500.0,0.0003641,2]
[392209980,1761257440761,-500.0,0.0003641,2]
[392209981,1761257440770,-500.0,0.0003641,2]
[392209982,1761257440779,-500.0,0.0003641,2]
[392209983,1761257440787,-500.0,0.0003641,2]
[392209984,1761257440796,-500.0,0.0003641,2]
[392209985,1761257440805,-500.0,0.0003641,2]
[392209986,1761257440814,-500.0,0.0003641,2]
[392209987,1761257440823,-500.0,0.0003641,2]
[392209988,1761257440832,-500.0,0.0003641,2]
[392209989,1761257440841,-500.0,0.0003641,2]
[392209990,1761257440850,-500.0,0.0003641,2]
[392209991,1761257440859,-500.0,0.0003641,2]
[392209992,1761257440868,-500.0,0.0003641,2]
[392209993,1761257440878,-500.0,0.0003641,2]
[392209994,1761257440887,-500.0,0.0003641,2]
[392209995,1761257440896,-500.0,0.0003641,2]
[392209996,1761257440905,-500.0,0.0003641,2]
[392209997,1761257440914,-500.0,0.0003641,2]
[392209998,1761257440924,-500.0,0.0003641,2]
[392209999,1761257440943,-500.0,0.0003641,2]
[392210000,1761257440953,-500.0,0.0003641,2]
[392210001,1761257440962,-500.0,0.0003641,2]
[392210002,1761257440972,-500.0,0.0003641,2]
[392210003,1761257440982,-500.0,0.0003641,2]
[392210004,1761257440991,-416.46283289,0.0003641,2]
[392210005,1761257441002,-500.0,0.0003641,2]
[392210006,1761257441011,-500.0,0.0003641,2]
[392210007,1761257441020,-209.40437684,0.0003641,2]
[392210008,1761257441030,-721.12765535,0.0003641,2]
[392210009,1761257441039,-574.12855637,0.0003641,2]
[392210010,1761257441048,-200.0,0.0003641,2]
[392210011,1761257441058,-250.0,0.0003641,2]